[Event "Prague Festival Open 2022"]
[Site "Prague"]
[Date "2022.06.11"]
[Round "3.10"]
[White "Karthik Venkataraman"]
[Black "Garcia Martin, Marta"]
[Result "1-0"]
[ECO "D37"]
[WhiteElo "2480"]
[BlackElo "2326"]
[Annotator "TA"]
[PlyCount "107"]
[EventDate "2022.06.10"]
[EventType "swiss"]
[EventCountry "CZE"]
[SourceTitle "playchess.com"]
[Source "ChessBase"]
[SourceQuality "1"]
[TimeControl "40/5400+30:1800+30"]

{[%evp 9,107,19,22,24,29,29,21,24,22,21,31,0,13,16,23,17,10,4,26,30,50,35,53,42,58,68,36,0,-11,0,0,0,0,-59,-72,-83,-58,-53,-36,-43,-29,-25,-33,-37,0,0,0,0,0,0,0,0,0,-26,35,17,30,0,52,0,0,0,22,0,28,-18,-34,-43,209,200,195,187,299,269,291,265,265,0,279,44,82,16,16,0,32,25,26,16,15,16,22,23,141,150,550,512,29959,12845,5858,4738]} 1. d4 {[%emt 0:06:33]} d5 {[%emt 0:00:47]} 2. c4 {[%emt 0:00:04]} e6 {[%emt 0:00:10]} 3. Nf3 {[%emt 0:00:07]} Nf6 {[%emt 0:00:22]} 4. Nc3 {[%emt 0:00:07]} a6 {[%emt 0:00:20]} 5. cxd5 {[%emt 0:00:07]} exd5 {[%emt 0:00:05]} 6. Bg5 {[%emt 0:00:05] D37: Queen's Gambit Declined: 5 Bf4.} Be6 {[%emt 0:00:25]} 7. e3 {[%emt 0:00:06]} Nbd7 {[%emt 0:01:03]} 8. Bd3 {[%emt 0:00:08] The position is equal.} Bd6 {[%emt 0:00:29]} 9. O-O {[%emt 0:00:07]} c6 {[%emt 0:00:35] 9...c6 is better than 9...0-0.} 10. Rc1 {[%emt 0:00:11]} O-O {[%emt 0:04:15]} 11. h3 {[%emt 0:00:42]} Qc7 {[%emt 0:02:17] [#]} 12. Bh4 $146 {[%emt 0:00:09]} ({Predecessor:} 12. Ne2 Ne4 13. Bf4 f5 14. Qb3 b6 15. Rc2 h6 16. Rfc1 c5 17. dxc5 Ndxc5 18. Qa3 {1-0 (52) Korobov,A (2698)-Bosiocic,M (2599) St Petersburg 2018}) 12... h6 {[%emt 0:13:00]} 13. Qe1 {[%emt 0:00:17]} Rfe8 {[%emt 0:10:41]} 14. Nd2 {[%emt 0:00:13]} Qd8 {[%emt 0:00:35]} 15. f4 {[%emt 0:01:57] Threatens to win with f5.} Nf8 {[%emt 0:05:36]} 16. Nf3 {[%emt 0:15:14]} Be7 {[%emt 0:05:32][%cal Of6e4]} 17. g4 {[%emt 0:02:43]} c5 {[%emt 0:12:15]} 18. f5 {[%emt 0:03:13]} (18. Rd1 $14 {should be considered.}) 18... Bc8 $11 {[%emt 0:03:04]} 19. Bxf6 {[%emt 0:00:58]} Bxf6 {[%emt 0:01:12]} 20. dxc5 {[%emt 0:00:08]} Bd7 {[%emt 0:10:54]} 21. Qd2 {[%emt 0:18:55]} (21. Bc2 $11) 21... Bc6 $1 $15 {[%emt 0:01:03][%mdl 1024] Black has compensation.} 22. Nd4 {[%emt 0:01:15]} Qc7 {[%emt 0:11:54] Hoping for ...Qg3+.} 23. Nce2 {[%emt 0:12:02] Against Qg3+} Re7 {[%emt 0:04:25] White must now prevent ...Rae8.} (23... Qe7 $5 {[%cal Re7e3]} 24. Rf3 (24. Nxc6 bxc6 25. Rf3 Nd7 $17) 24... Nd7 $15) 24. Rc3 $1 {[%emt 0:09:32]} Rae8 {[%emt 0:00:16]} 25. Bc2 {[%emt 0:03:16]} Nh7 {[%emt 0:04:21] Strongly threatening ...Bb5.} 26. Nf4 {[%emt 0:01:03]} Ng5 {[%emt 0:01:38]} (26... Qa5 $5 {[%cal Re7e3]}) 27. Kg2 {[%emt 0:02:09]} Ne4 {[%emt 0:00:44]} 28. Bxe4 {[%emt 0:00:05]} Rxe4 {[%emt 0:00:04]} 29. Rf3 {[%emt 0:01:21]} Qa5 {[%emt 0:05:20]} 30. a3 {[%emt 0:01:10]} Qa4 {[%emt 0:01:19][%cal Rf6d4]} 31. Nfe2 {[%emt 0:00:29]} Bg5 {[%emt 0:00:46]} ({Black should play} 31... Bb5 $11 32. Qc2 h5 33. gxh5 Qxc2 34. Rxc2 Bxe2 35. Nxe2 Rxe3) 32. Rd3 {[%emt 0:01:22]} (32. f6 $5 Bxf6 33. Rxf6 gxf6 34. Ng3 $14) 32... Qc4 {[%emt 0:00:27]} 33. Rc3 {[%emt 0:05:45]} Qa4 {[%emt 0:00:14]} 34. b4 {[%emt 0:01:18]} (34. f6 $1 $14 Bxf6 35. Rxf6 gxf6 36. Ng3) 34... Bb5 $11 {[%emt 0:00:50]} 35. Ng3 {[%emt 0:01:50]} R4e5 {[%emt 0:00:29]} 36. Nh5 {[%emt 0:00:46]} Bc4 {[%emt 0:00:30] This bishop pair is nice.} 37. Qf2 {[%emt 0:00:25]} (37. f6 {is more appropriate.} g6 38. Nf4) 37... Qd1 {[%emt 0:00:20] And now ...Bd3 would win.} 38. f6 $1 {[%emt 0:01:36][%cal Bf5f6,Bf6g7][%mdl 32]} Bxe3 $2 {[%emt 0:00:40][%mdl 8192]} 39. Rcxe3 $18 {[%emt 0:00:26]} Qxd4 {[%emt 0:00:07] [#]} 40. Rxe5 {[%emt 0:00:03]} Qxe5 {[%emt 0:00:54]} (40... Qxf2+ {is a better defense.} 41. Kxf2 Rxe5) 41. fxg7 {[%emt 0:30:18]} Re7 {[%emt 0:01:27]} 42. Qd2 {[%emt 0:00:00]} Qa1 {[%emt 0:15:14] ...Re2+ is the strong threat.} 43. Re3 {[%emt 0:00:00] Prevents Re2+. Chess con chili.} (43. Qxh6 Re2+ 44. Rf2 (44. Kg3 $2 Qe1+ 45. Kf4 Qd2+ 46. Kg3 Rg2+ 47. Kh4 Qxh6 $19) 44... Rxf2+ 45. Kxf2 Qf1+ 46. Kg3 Qe1+ 47. Kh2 Qf2+ 48. Kh1 Qf1+ 49. Kh2 Qf2+ 50. Kh1 Qf1+ 51. Kh2 Qf2+ $11) (43. Rf2 $18 Re1 44. Ng3 (44. Qxh6 Rg1+ 45. Kh2 Rh1+ 46. Kg3 Qg1+ 47. Kh4 Qxf2+ $11)) 43... Re5 $2 {[%emt 0:03:08][%mdl 8192]} (43... Rxe3 44. Qxe3 Bb5 45. Kh2 $18 (45. Qxh6 Qf1+ 46. Kh2 Qf2+ 47. Kh1 Qe1+ 48. Kh2 Qf2+ 49. Kh1 Qe1+ 50. Kg2 Qf1+ 51. Kh2 Qf2+ $11)) (43... Qf1+ $1 $11 {and Black stays safe.} 44. Kg3 Qg1+ 45. Kf4 Qf1+ 46. Rf3 (46. Kg3 Qg1+ 47. Kf4 Qf1+ 48. Rf3 Qg1 $11) 46... Qg1) 44. Kh2 $2 $40 {[%emt 0:00:00][%mdl 128] White has some attack.} ({Weaker is} 44. Rxe5 Qxe5 45. Ng3 (45. Qxh6 Qe4+ 46. Kh2 Qe2+ 47. Kh1 Qe4+ 48. Kh2 Qe2+ 49. Kh1 Qe4+ 50. Kh2 $11) 45... h5 $16) (44. a4 $18) 44... Bb5 $1 $14 {[%emt 0:01:58] [#]} 45. Nf4 {[%emt 0:00:00]} (45. a4 $1 $16 {[%cal Ra4b5]} Bxa4 46. Qe2 Rxe3 47. Qxe3 Qb2+ 48. Kg3) 45... Kxg7 $11 {[%emt 0:03:54]} 46. Nxd5 {[%emt 0:00:00]} Bc6 {[%emt 0:00:30]} 47. Rxe5 {[%emt 0:00:00]} Qxe5+ $14 {[%emt 0:00:07][%mdl 4096] Endgame KQB-KQN} 48. Nf4 {[%emt 0:00:00]} a5 {[%emt 0:02:40]} 49. Kg3 {[%emt 0:00:00]} axb4 {[%emt 0:01:53]} 50. axb4 {[%emt 0:00:00]} h5 {[%emt 0:00:19]} (50... Kg8 $11 {remains equal.}) 51. gxh5 $16 {[%emt 0:00:00]} Kh6 $2 {[%emt 0:00:43]} (51... Qg5+ $16 {is a better chance.} 52. Kf2 Qh4+ 53. Ke3 Qe7+ 54. Kd3 (54. Kf2 Qf6 $16) 54... Qe4+ 55. Kc3 f6) 52. Qd6+ $18 {[%emt 0:00:00]} Qxd6 {[%emt 0:00:27]} (52... f6 $18 53. Qxe5 fxe5) 53. cxd6 {[%emt 0:00:00] Nd3 would kill now.} Kg5 {[%emt 0:00:16] [#]} 54. Nd5 $1 {[%emt 0:00:00][%mdl 512] Weighted Error Value: White=0.24 (precise) /Black=0.50} 1-0

[Event "Prague Festival Open 2022"]
[Site "Prague"]
[Date "2022.06.11"]
[Round "3.11"]
[White "Raja Harshit"]
[Black "Lye, Lik Zang"]
[Result "1-0"]
[ECO "B11"]
[WhiteElo "2479"]
[BlackElo "2358"]
[Annotator "TA"]
[PlyCount "109"]
[EventDate "2022.06.10"]
[EventType "swiss"]
[EventCountry "CZE"]
[SourceTitle "playchess.com"]
[Source "ChessBase"]
[SourceQuality "1"]
[TimeControl "40/5400+30:1800+30"]

{[%evp 10,109,23,17,31,20,20,0,46,26,26,25,27,31,33,35,67,56,107,97,123,104,132,127,133,80,70,54,57,56,89,81,80,75,98,98,98,98,98,98,98,87,87,87,83,87,89,79,105,91,132,125,131,120,120,103,110,96,126,100,112,112,112,112,180,184,231,233,372,373,609,345,311,0,610,167,221,0,610,605,943,909,1081,550,533,515,1153,820,1346,1234,1257,1180,2283,1722,2644,2243,6629,6374,6070,4702,2822,2661]} 1. e4 {[%emt 0:01:38]} c6 {[%emt 0:01:45]} 2. Nf3 {[%emt 0:01:14]} d5 {[%emt 0:00:24]} 3. Nc3 {[%emt 0:01:34]} dxe4 {[%emt 0:02:32]} 4. Nxe4 {[%emt 0:00:18]} Nf6 {[%emt 0:00:25]} 5. Qe2 {[%emt 0:00:07]} Nxe4 {[%emt 0:01:48]} 6. Qxe4 {[%emt 0:00:09]} Qa5 {[%emt 0:06:27] B11: Caro-Kann: Two Knights Variation.} 7. Qf4 {[%emt 0:00:27]} Qf5 {[%emt 0:02:03]} 8. Qe3 {[%emt 0:00:09]} Qe6 {[%emt 0:05:36]} (8... Qxc2 $11 {feels stronger.} 9. Bd3 Qa4) 9. b3 {[%emt 0:00:09]} Qxe3+ {[%emt 0:01:50]} 10. fxe3 {[%emt 0:03:09]} Bf5 {[%emt 0:03:46]} 11. Bb2 {[%emt 0:00:10] [#]} f6 $146 {[%emt 0:05:21]} ({Predecessor:} 11... Nd7 12. O-O-O a5 13. a4 e6 14. Rg1 h5 15. Bd3 Bxd3 16. cxd3 Nc5 17. Kc2 Na6 {½-½ (66) Svidler,P (2714)-Jumabayev,R (2637) Chess.com INT 2021}) 12. O-O-O {[%emt 0:00:11]} Bg4 {[%emt 0:04:33]} 13. h3 {[%emt 0:01:07][%cal Bh2h3,Bh3h4,Bh4h5][%mdl 32]} Bxf3 {[%emt 0:01:53]} (13... Bh5 $14) 14. gxf3 $16 {[%emt 0:00:33]} e5 {[%emt 0:03:09]} 15. h4 {[%emt 0:05:42]} Nd7 {[%emt 0:16:44]} 16. Bh3 {[%emt 0:00:18]} Rd8 {[%emt 0:05:47]} 17. Rhg1 {[%emt 0:01:00]} (17. h5 $142) 17... Kf7 {[%emt 0:02:12]} 18. Rg2 {[%emt 0:06:02] White is more active.} g6 {[%emt 0:04:41]} 19. h5 {[%emt 0:01:43]} Bh6 {[%emt 0:07:00]} 20. Rh1 {[%emt 0:01:06]} Nb6 {[%emt 0:05:28]} 21. c4 {[%emt 0:03:35]} Nd7 {[%emt 0:06:03]} 22. Bxd7 {[%emt 0:02:34]} Rxd7 {[%emt 0:00:11]} 23. hxg6+ {[%emt 0:00:13]} hxg6 {[%emt 0:00:09]} 24. Rgh2 {[%emt 0:00:34]} Kg7 {[%emt 0:00:29]} 25. f4 {[%emt 0:03:07]} exf4 {[%emt 0:08:56]} 26. exf4 {[%emt 0:00:12]} Re7 {[%emt 0:00:43]} 27. Kc2 {[%emt 0:03:34]} Re4 {[%emt 0:02:11]} 28. Rh4 {[%emt 0:01:02]} c5 {[%emt 0:01:28]} 29. R1h2 {[%emt 0:04:27]} Re6 {[%emt 0:00:35]} 30. a4 {[%emt 0:00:57][%cal Ba2a4,Ba4a5][%mdl 32]} Re4 {[%emt 0:00:34]} 31. Bc3 {[%emt 0:00:21]} Re6 {[%emt 0:00:24]} 32. a5 {[%emt 0:00:22]} Re4 {[%emt 0:00:23]} 33. Kb2 {[%emt 0:01:07]} Re6 {[%emt 0:00:34]} 34. Ka3 {[%emt 0:00:28]} Re4 {[%emt 0:00:49]} 35. Ka4 {[%emt 0:00:11] Kb5 is the strong threat.} a6 {[%emt 0:00:25]} 36. R2h3 {[%emt 0:00:43]} Re2 {[%emt 0:00:36] [#]} (36... Ree8 $16 {keeps fighting.}) 37. b4 $1 $18 {[%emt 0:01:20]} cxb4 {[%emt 0:00:24]} (37... Rh7 {is a better defense.} 38. bxc5 Rf2) 38. Kxb4 {[%emt 0:00:05] Strongly threatening d4.} Re4 {[%emt 0:00:26]} (38... Rf2 $142 39. d3 Rf1) 39. d3 {[%emt 0:00:57][%cal Bd2d3,Bd3d4,Bd4d5][%mdl 32]} Re6 {[%emt 0:00:39]} (39... Re7 40. Kc5 Rc7+ 41. Kb6 Rc6+ 42. Ka7 (42. Kxb7 Rhc8 $11) 42... Rc7) 40. Kb3 {[%emt 0:01:10]} Ree8 {[%emt 0:00:31]} 41. Kb4 $2 {[%emt 0:33:12]} (41. c5) 41... Re6 $1 {[%emt 0:30:26]} 42. Bd4 $2 {[%emt 0:02:37]} (42. d4) 42... Rd6 {[%emt 0:00:00]} (42... Re1 $142 43. Bxf6+ Kxf6 44. Rxh6 Rxh6 45. Rxh6 Rd1) 43. Bc3 $2 {[%emt 0:00:00]} (43. Kc3) 43... Re6 $1 {[%emt 0:00:00]} 44. d4 {[%emt 0:00:00] White is clearly winning.} Ree8 {[%emt 0:00:00][%cal Oh6f4]} 45. d5 {[%emt 0:00:00]} Rd8 {[%emt 0:00:00] [#]} 46. Bxf6+ $1 {[%emt 0:00:00][%mdl 512]} Kxf6 {[%emt 0:00:00]} 47. Rxh6 {[%emt 0:00:00]} Rxh6 {[%emt 0:00:16]} (47... Rhe8 $142 48. Rg3 Rg8) 48. Rxh6 {[%emt 0:00:00][%mdl 4096] Endgame Hoping for Kc5. KR-KR} Rd7 {[%emt 0:00:47]} 49. Kc5 {[%emt 0:00:00]} Rc7+ {[%emt 0:01:09]} 50. Kd4 {[%emt 0:00:00]} Kf5 {[%emt 0:00:54]} 51. d6 {[%emt 0:00:00]} Rg7 {[%emt 0:01:44]} 52. Kd5 {[%emt 0:00:00]} Kf6 {[%emt 0:00:46]} 53. c5 {[%emt 0:00:00]} Kf5 {[%emt 0:00:13]} 54. Rh8 {[%emt 0:00:00] Rf8+ would kill now.} Rf7 {[%emt 0:00:46] Prevents Rf8.} 55. Re8 {[%emt 0:00:00] Weighted Error Value: White=0.53/Black=0.26 (precise)} 1-0

[Event "Prague Festival Open 2022"]
[Site "Prague"]
[Date "2022.06.11"]
[Round "3.12"]
[White "Sedlak, Nikola"]
[Black "Vojta, Tomas"]
[Result "1-0"]
[ECO "D02"]
[WhiteElo "2476"]
[BlackElo "2318"]
[Annotator "TA"]
[PlyCount "71"]
[EventDate "2022.06.10"]
[EventType "swiss"]
[EventCountry "CZE"]
[SourceTitle "playchess.com"]
[Source "ChessBase"]
[SourceQuality "1"]
[TimeControl "40/5400+30:1800+30"]

{[%evp 9,71,27,42,25,32,22,69,56,104,98,133,110,126,54,92,99,97,102,77,108,249,227,249,246,248,238,262,252,385,411,412,337,338,325,325,310,687,665,681,690,685,672,679,674,762,623,731,726,826,815,797,806,852,827,766,678,724,710,687,675,613,409,587,556]} 1. Nf3 {[%emt 0:05:17]} d5 {[%emt 1:31:00]} 2. g3 {[%emt 0:00:26]} Nc6 {[%emt 0:00:00]} 3. d4 {[%emt 0:00:39]} Bg4 {[%emt 0:00:00]} 4. Bg2 {[%emt 0:00:44]} Qd7 {[%emt 0:00:00]} 5. O-O {[%emt 0:00:50]} O-O-O {[%emt 0:00:00]} 6. c3 {[%emt 0:02:09] D02: 1 d4 d5 2 Nf3 sidelines, including 2...Nf6 3 g3 and 2...Nf6 3 Bf4.} h5 {[%emt 0:00:00][%cal Oe7e5]} 7. b4 {[%emt 0:00:45][%cal Bb2b4,Bb4b5][%mdl 32]} f6 {[%emt 0:00:00]} (7... Bxf3 $11 8. Bxf3 (8. exf3 h4 $11) 8... Kb8) 8. b5 $14 {[%emt 0:01:17] White is slightly better.} Nb8 {[%emt 0:00:00] [#]} (8... Na5 $14 {might be stronger.}) 9. c4 $146 {[%emt 0:09:54]} ({Predecessor:} 9. Qa4 Bh3 10. c4 Bxg2 11. Kxg2 g5 12. cxd5 h4 13. e4 Qg4 14. Nbd2 hxg3 15. fxg3 {1-0 (43) Blittkowsky,R (1953)-Vujadinovic,M (2033) IECG email 2003}) 9... dxc4 {[%emt 0:00:00]} 10. Qa4 {[%emt 0:15:59]} h4 {[%emt 0:00:00] [#]} (10... Bxf3 $2 11. Bxf3 e5 12. Na3 $18 (12. Qxc4 Qxd4 13. Qb3 e4 $16) (12. Qxa7 Qxb5 13. dxe5 Qa6 $16)) 11. Qxa7 {[%emt 0:05:01]} ({Reject} 11. Qxc4 $6 hxg3 12. fxg3 (12. hxg3 $2 Bh3 $19) 12... e5 $11) ({White should play} 11. Na3 $1 $16 hxg3 12. fxg3) 11... Qxb5 {[%emt 0:00:00] aiming for ...Nc6.} 12. Nc3 $36 {[%emt 0:00:44][%mdl 2048] White is on the roll.} Qa6 {[%emt 0:00:00]} 13. Qxa6 {[%emt 0:00:10] White is more active.} Nxa6 {[%emt 0:00:00]} 14. Nxh4 {[%emt 0:00:08]} g5 {[%emt 0:00:00] Loses the game.} (14... Bh5 $16) 15. Ng6 {[%emt 0:00:23]} Rh7 {[%emt 0:00:00]} 16. Nxf8 {[%emt 0:01:27]} Rxf8 {[%emt 0:00:00]} 17. Rb1 {[%emt 0:03:56]} c6 {[%emt 0:00:00]} 18. d5 {[%emt 0:01:11][%cal Bd4d5,Bd5d6][%mdl 32]} c5 {[%emt 0:00:00]} (18... cxd5 $142 19. Bxd5 e6) 19. f4 $18 {[%emt 0:09:07]} gxf4 {[%emt 0:00:00]} 20. Rxf4 {[%emt 0:00:13][%cal Bf1f4,Bf4c4,Bc4a4,Ba4a7][%mdl 32]} f5 {[%emt 0:00:00]} 21. Rxc4 {[%emt 0:01:06]} Nf6 {[%emt 0:00:00]} 22. Be3 {[%emt 0:03:32] This bishop pair is nice.} Nd7 {[%emt 0:00:00] [#]} (22... Rd8 23. h4 Rd7) 23. d6 {[%emt 0:00:46]} b6 {[%emt 0:00:00]} 24. Ra4 {[%emt 0:01:41]} Nab8 {[%emt 0:00:00]} 25. Ra7 {[%emt 0:04:02]} exd6 {[%emt 0:00:00]} 26. Nb5 {[%emt 0:02:13]} Rh5 {[%emt 0:00:00] Prevents Bg5.} 27. h4 {[%emt 0:01:04][%cal Bh2h4,Bh4g5][%mdl 32]} Rf6 {[%emt 0:00:00]} 28. Bg5 {[%emt 0:01:04]} Rxg5 {[%emt 0:00:00]} 29. hxg5 {[%emt 0:00:15]} Re6 {[%emt 0:00:00]} 30. Nc3 {[%emt 0:05:53]} Bxe2 {[%emt 0:00:00]} 31. Re1 {[%emt 0:00:41]} Bc4 {[%emt 0:00:00]} 32. Rxe6 {[%emt 0:00:08]} Bxe6 {[%emt 0:00:00]} 33. Bd5 {[%emt 0:00:42]} Bxd5 {[%emt 0:00:00]} 34. Nxd5 {[%emt 0:00:09]} Ne5 {[%emt 0:00:00]} 35. Ne7+ {[%emt 0:01:09]} Kd8 {[%emt 0:00:00]} 36. g6 {[%emt 0:00:44] Weighted Error Value: White=0.13 (very precise) /Black=0.39} 1-0

[Event "Prague Festival Open 2022"]
[Site "Prague"]
[Date "2022.06.12"]
[Round "4.1"]
[White "Motylev, Alexander"]
[Black "Kozak, Antoni"]
[Result "1-0"]
[ECO "B51"]
[WhiteElo "2633"]
[BlackElo "2459"]
[Annotator "TA"]
[PlyCount "79"]
[EventDate "2022.06.10"]
[EventType "swiss"]
[EventCountry "CZE"]
[SourceTitle "playchess.com"]
[Source "ChessBase"]
[SourceQuality "1"]
[TimeControl "40/5400+30:1800+30"]

{[%evp 9,78,20,18,13,20,8,10,4,10,19,10,8,10,9,11,8,9,0,17,5,8,0,0,0,0,0,8,0,17,0,27,43,32,-3,28,0,0,0,0,0,0,0,0,-23,-25,-51,-45,-73,-93,-79,-86,-70,-66,-66,-75,-70,233,229,350,344,505,504,877,808,701,693,29993,29994,29994,29989,29999]} 1. e4 {[%emt 0:00:03]} c5 {[%emt 0:00:05]} 2. Nf3 {[%emt 0:00:05]} d6 {[%emt 0:00:08]} 3. Bb5+ {[%emt 0:00:06]} Nd7 {[%emt 0:00:04]} 4. O-O {[%emt 0:00:11]} a6 {[%emt 0:00:13]} 5. Bd3 {[%emt 0:00:07]} Ngf6 {[%emt 0:05:03]} 6. c3 {[%emt 0:00:39] B51: Sicilian: Moscow Variation (3 Bb5+) without 3...Bd7.} b5 {[%emt 0:01:31]} 7. Bc2 {[%emt 0:00:06]} Bb7 {[%emt 0:00:34]} 8. Re1 {[%emt 0:00:40] The position is equal.} e6 {[%emt 0:02:22]} 9. d4 {[%emt 0:00:19]} Be7 {[%emt 0:06:16]} 10. Nbd2 {[%emt 0:00:35][%cal Bb1d2,Bd2f1,Bf1g3][%mdl 32]} Qc7 {[%emt 0:00:48]} 11. Nf1 {[%emt 0:02:21]} O-O {[%emt 0:02:38]} 12. Ng3 {[%emt 0:00:09]} Rfe8 {[%emt 0:10:00]} 13. Bd2 $5 {[%emt 0:03:31][%mdl 4] A promising side line.} Bf8 {[%emt 0:01:49]} 14. h3 {[%emt 0:01:33] [#]} a5 $146 {[%emt 0:09:29]} ({Predecessor:} 14... g6 15. Bd3 Bg7 16. b3 Nb6 17. Rc1 c4 18. Bb1 a5 19. Bg5 cxb3 20. axb3 a4 {0-1 (44) Delgado Ramirez,N (2602)-Esen,B (2589) Tromsoe 2014}) 15. a4 {[%emt 0:03:07]} b4 {[%emt 0:01:18]} 16. Rc1 {[%emt 0:00:39]} bxc3 {[%emt 0:02:23]} 17. Bxc3 {[%emt 0:01:13]} cxd4 {[%emt 0:01:55]} 18. Nxd4 {[%emt 0:01:09]} Qb6 {[%emt 0:08:18]} 19. Qd2 {[%emt 0:07:53]} Ne5 {[%emt 0:06:56]} 20. Nb5 {[%emt 0:15:12]} Rec8 {[%emt 0:03:40]} 21. Rcd1 {[%emt 0:05:54]} Ne8 {[%emt 0:01:29]} 22. Ne2 {[%emt 0:12:09]} (22. Bd4 $5 {[%cal Rd4b6]} Qa6 23. Rc1 $11) 22... Nc4 {[%emt 0:03:47]} 23. Qd3 {[%emt 0:03:23]} Ba6 {[%emt 0:04:31]} 24. e5 {[%emt 0:05:27][%csl Gc2][%cal Rd3h7] [#]} g6 {[%emt 0:00:05]} 25. exd6 $40 {[%emt 0:00:47][%mdl 128] White is up to no good.} Ncxd6 {[%emt 0:01:51]} 26. Ned4 {[%emt 0:03:15][%cal Od4e6]} Bg7 {[%emt 0:01:17]} 27. Bb3 {[%emt 0:01:59][%cal Od4e6]} e5 {[%emt 0:15:43]} 28. Nf3 {[%emt 0:06:40]} Bxb5 {[%emt 0:02:59]} (28... e4 {looks sharper.} 29. Rxe4 Bxc3 30. bxc3 Nxe4 31. Qxe4 Bxb5 32. axb5 Ra7) 29. axb5 {[%emt 0:00:21]} e4 {[%emt 0:00:21]} 30. Rxe4 {[%emt 0:00:57]} Bxc3 $1 {[%emt 0:02:46]} ({But not} 30... Nxe4 31. Qxe4 Qxb5 32. Bxf7+ Kxf7 33. Rd5 $11) 31. bxc3 {[%emt 0:01:40] aiming for Re5.} Nxe4 {[%emt 0:00:28]} 32. Qxe4 {[%emt 0:01:16] Ng5 is the strong threat.} Qxb5 {[%emt 0:01:30][%mdl 8192] [#] This costs Black the game.} (32... Ra7 $1 $15 33. Qe5 a4) 33. Bxf7+ $1 $18 {[%emt 0:01:35]} Kxf7 {[%emt 0:01:23]} (33... Kh8 $142 34. Ne5 Nf6) 34. Rd5 {[%emt 0:00:18] Intending Ng5+ and mate.} Qxd5 {[%emt 0:03:08]} (34... Qb2 $142) 35. Qxd5+ {[%emt 0:00:31]} Ke7 {[%emt 0:00:11]} (35... Kg7 $142 36. Ng5 Kh8 37. Qd4+ Ng7 38. Nf7+ Kg8) 36. Ne5 {[%emt 0:06:23]} Nd6 {[%emt 0:00:52]} 37. c4 {[%emt 0:01:25]} Nf5 {[%emt 0:00:30]} 38. Qd7+ {[%emt 0:02:48] White mates.} Kf6 {[%emt 0:00:04]} 39. f4 {[%emt 0:03:39][%cal Re5g4]} Rf8 {[%emt 0:00:20]} 40. Ng4# {[%emt 0:10:25] Weighted Error Value: White=0.06 (flawless) /Black=0.48} 1-0

[Event "Prague Festival Open 2022"]
[Site "Prague"]
[Date "2022.06.12"]
[Round "4.2"]
[White "Rasik, Vitezslav"]
[Black "Stefansson, Hannes"]
[Result "1/2-1/2"]
[WhiteElo "2433"]
[BlackElo "2534"]
[Annotator "TA"]
[PlyCount "30"]
[EventDate "2022.06.10"]
[EventType "swiss"]
[EventCountry "CZE"]
[SourceTitle "playchess.com"]
[Source "ChessBase"]
[SourceQuality "1"]
[TimeControl "40/5400+30:1800+30"]

{[%evp 12,17,10,10,13,2,12,8]} 1. e4 {[%emt 0:00:05]} c5 {[%emt 0:16:58]} 2. Nf3 {[%emt 0:01:43]} d6 {[%emt 0:00:13]} 3. Bb5+ {[%emt 0:01:13]} Nd7 {[%emt 0:00:26]} 4. c3 {[%emt 0:04:08]} Ngf6 {[%emt 0:01:00]} 5. Qe2 {[%emt 0:00:27]} a6 {[%emt 0:01:08]} 6. Ba4 {[%emt 0:00:07]} b5 {[%emt 0:00:48]} 7. Bc2 {[%emt 0:00:09] The position is equal.} Bb7 {[%emt 0:00:28] B51: Sicilian: Moscow Variation (3 Bb5+) without 3...Bd7.} 8. d4 {[%emt 0:01:15]} g6 {[%emt 0:00:57]} 9. O-O {[%emt 0:00:14] [#] A rather calm draw.} {Predecessor:} Bg7 $146 10. Rd1 cxd4 11. cxd4 O-O 12. a3 Rc8 13. Nc3 Nb6 14. Bd3 Nc4 15. h3 Qb6 {0-1 (40) Hansen,E (2606)-Giri,A (2772) chess24.com INT 2022} 1/2-1/2